fUST/lending_fUST_20260503
["ID","MTS","AMOUNT","RATE_DAILY","PERIOD"]
[421509118,1777783838000,-350.25245246,0.00013851,2]
[421509122,1777783838000,-563.65142523,0.00014,2]
[421509130,1777783838000,-151.0,0.00014268,2]
[421509125,1777783838000,-151.46,0.00014065,2]
[421509106,1777783838000,-160.0,0.00013623,2]
[421509114,1777783838000,-439.41277407,0.00013765,2]
[421509112,1777783838000,-1000.0,0.00013699,2]
[421509117,1777783838000,-1411.0,0.00013811,2]
[421509110,1777783838000,-1000.0,0.00013699,2]
[421509108,1777783838000,-160.0,0.00013623,2]
[421509104,1777783838000,-160.0,0.00012891,2]
[421509103,1777783838000,-325.44344356,0.00011765,2]
[421509136,1777783838000,-600.0,0.00014878,2]
[421509132,1777783838000,-456.1595541,0.00014268,2]
[421509134,1777783838000,-10000.0,0.00014587,2]
[421509137,1777783838000,-200.34463601,0.000149,2]
[421509138,1777783838000,-151.0,0.00014982,2]
[421509153,1777783838000,-500.0,0.00015172,2]
[421509156,1777783838000,-2712.86040235,0.00015367,2]
[421509154,1777783838000,-297.75990901,0.00015172,2]
[421509155,1777783838000,-221259.67307703,0.00015173,2]
[421509152,1777783838000,-207.33915468,0.00015172,2]
[421509147,1777783838000,-500.0,0.00015172,2]
[421509151,1777783838000,-500.0,0.00015172,2]
[421509149,1777783838000,-245.61613275,0.00015172,2]
[421509150,1777783838000,-500.0,0.00015172,2]
[421509146,1777783838000,-500.0,0.00015172,2]
[421509145,1777783838000,-500.0,0.00015172,2]
[421509144,1777783838000,-500.0,0.00015172,2]
[421509143,1777783838000,-328.17868722,0.00015172,2]
[421509142,1777783838000,-500.0,0.00015172,2]
[421509140,1777783838000,-500.0,0.00015172,2]
[421509141,1777783838000,-500.0,0.00015172,2]
[421509139,1777783838000,-151.0,0.00014982,2]
[421509148,1777783838000,-390.58902684,0.00015172,2]
[421509162,1777783839000,-500.0,0.0001572,2]
[421509158,1777783839000,-500.0,0.00015446,2]
[421509157,1777783839000,-500.0,0.00015372,2]
[421509159,1777783839000,-592.65768203,0.00015576,2]
[421509163,1777783839000,-537.6845,0.0001575,2]
[421509160,1777783839000,-592.65768203,0.00015602,2]
[421509164,1777783839000,-497.57034711,0.00015765,2]
[421509166,1777783839000,-500.0,0.00015994,2]
[421509169,1777783839000,-25300.77511603,0.000161,2]
[421509168,1777783839000,-5000.0,0.0001606,2]
[421509167,1777783839000,-592.65768203,0.00016034,2]
[421509165,1777783839000,-208.73838232,0.00015805,2]
[421509161,1777783839000,-592.65768203,0.00015682,2]
[421509259,1777783846000,-339.13433122,0.000161,2]
[421509260,1777784475000,-5000.0,0.0001329,2]
[421509261,1777784498000,-566.0,0.0001329,2]
[421509262,1777784499000,20000.0,0.00021917,120]
[421509263,1777784522000,-5000.0,0.00013157,2]
[421509265,1777784544000,35000.0,0.00021917,120]
[421509264,1777784544000,-5000.0,0.00013288,2]
[421509266,1777784563000,-160.0,0.00013422,2]
[421509267,1777784585000,-5000.0,0.00013288,2]
[421509268,1777784639000,2895.0,0.00021917,120]
[421509311,1777785032000,-300.0,0.00014231,2]
[421509297,1777785032000,-2013.05918132,0.0001316,2]
[421509298,1777785032000,-2750.0,0.0001316,2]
[421509300,1777785032000,-1000.0,0.00013699,2]
[421509301,1777785032000,-1000.0,0.00013699,2]
[421509299,1777785032000,-236.94081868,0.0001316,2]
[421509302,1777785032000,-160.0,0.0001381,2]
[421509304,1777785032000,-300.0,0.00014231,2]
[421509305,1777785032000,-300.0,0.00014231,2]
[421509303,1777785032000,-160.0,0.0001381,2]
[421509307,1777785032000,-300.0,0.00014231,2]
[421509309,1777785032000,-300.0,0.00014231,2]
[421509312,1777785032000,-300.0,0.00014231,2]
[421509327,1777785032000,-539.18022281,0.00014515,2]
[421509315,1777785032000,-300.0,0.00014231,2]
[421509314,1777785032000,-300.0,0.00014231,2]
[421509316,1777785032000,-300.0,0.00014231,2]
[421509320,1777785032000,-300.0,0.00014231,2]
[421509317,1777785032000,-300.0,0.00014231,2]
[421509318,1777785032000,-300.0,0.00014231,2]
[421509319,1777785032000,-300.0,0.00014231,2]
[421509321,1777785032000,-300.0,0.00014231,2]
[421509323,1777785032000,-725.79,0.00014486,2]
[421509324,1777785032000,-2449.21,0.00014487,2]
[421509322,1777785032000,-267.96,0.00014268,2]
[421509325,1777785032000,-5606.87180892,0.00014487,2]
[421509326,1777785032000,-4393.12819108,0.00014487,2]
[421509313,1777785032000,-300.0,0.00014231,2]
[421509393,1777785048000,-1257.87188007,0.0001437,2]
[421509394,1777785048000,-346.82645594,0.0001437,2]
[421509401,1777785156000,459.0,0.0001492,120]
[421509400,1777785156000,459.0,0.0001492,120]
[421509399,1777785156000,459.0,0.0001492,120]
[421509398,1777785156000,459.0,0.0001492,120]
[421509397,1777785156000,459.0,0.0001492,120]
[421509396,1777785156000,459.0,0.0001492,120]
[421509407,1777785157000,459.0,0.0001492,120]
[421509406,1777785157000,459.0,0.0001492,120]
[421509405,1777785157000,459.0,0.0001492,120]
[421509404,1777785157000,459.0,0.0001492,120]
[421509403,1777785157000,459.0,0.0001492,120]
[421509402,1777785157000,459.0,0.0001492,120]
[421509409,1777785158000,459.0,0.0001492,120]
[421509408,1777785158000,459.0,0.0001492,120]
[421509411,1777785158000,459.0,0.0001492,120]
[421509410,1777785158000,459.0,0.0001492,120]
[421509412,1777785158000,459.0,0.0001492,120]
[421509413,1777785159000,459.0,0.0001492,120]
[421509414,1777785160000,459.0,0.0001492,120]
[421509415,1777785161000,459.0,0.0001492,120]
[421509416,1777785162000,459.0,0.0001492,120]
[421509417,1777785165000,459.0,0.0001492,120]
[421509418,1777785167000,459.0,0.0001492,120]
[421509419,1777785169000,459.51895212,0.0001492,120]
[421509437,1777786231000,-1768.748,0.0001289,2]
[421509439,1777786232000,-415.50854083,0.0001289,2]
[421509440,1777786232000,-463.75531897,0.0001289,2]
[421509480,1777786238000,-300.0,0.0001383,2]
[421509479,1777786238000,-300.0,0.0001383,2]
[421509475,1777786238000,-300.0,0.0001383,2]
[421509474,1777786238000,-300.0,0.0001383,2]
[421509471,1777786238000,-300.0,0.0001383,2]
[421509476,1777786238000,-300.0,0.0001383,2]
[421509478,1777786238000,-300.0,0.0001383,2]
[421509477,1777786238000,-300.0,0.0001383,2]
[421509488,1777786238000,-500.0,0.00014359,2]
[421509486,1777786238000,-199.57468251,0.0001426,2]
[421509484,1777786238000,-1579.9746755,0.00014175,2]
[421509485,1777786238000,-462.2834326,0.00014217,2]
[421509487,1777786238000,-285.23316953,0.00014359,2]
[421509489,1777786238000,-500.0,0.00014359,2]
[421509494,1777786238000,-500.0,0.00014359,2]
[421509490,1777786238000,-500.0,0.00014359,2]
[421509491,1777786238000,-500.0,0.00014359,2]
[421509470,1777786238000,-300.0,0.0001383,2]
[421509495,1777786238000,-500.0,0.00014359,2]
[421509483,1777786238000,-600.0,0.00014106,2]
[421509454,1777786238000,-2351.9881402,0.0001289,2]
[421509482,1777786238000,-300.0,0.0001383,2]
[421509457,1777786238000,-300.0,0.00013556,2]
[421509467,1777786238000,-1000.0,0.00013699,2]
[421509463,1777786238000,-160.0,0.00013665,2]
[421509492,1777786238000,-500.0,0.00014359,2]
[421509459,1777786238000,-300.0,0.00013556,2]
[421509464,1777786238000,-160.0,0.00013665,2]
[421509460,1777786238000,-300.0,0.00013556,2]
[421509456,1777786238000,-323.46177233,0.00013022,2]
[421509455,1777786238000,-603.0,0.0001289,2]
[421509458,1777786238000,-300.0,0.00013556,2]
[421509465,1777786238000,-37515.85719302,0.00013671,2]
[421509469,1777786238000,-300.0,0.0001383,2]
[421509468,1777786238000,-300.0,0.0001383,2]
[421509462,1777786238000,-1129.69678388,0.00013583,2]
[421509461,1777786238000,-1200.0,0.00013556,2]
[421509473,1777786238000,-300.0,0.0001383,2]
[421509472,1777786238000,-300.0,0.0001383,2]
[421509481,1777786238000,-300.0,0.0001383,2]
[421509466,1777786238000,-1000.0,0.00013699,2]
[421509493,1777786238000,-500.0,0.00014359,2]
[421509520,1777786238000,-500.0,0.00014359,2]
[421509502,1777786238000,-500.0,0.00014359,2]
[421509516,1777786238000,-500.0,0.00014359,2]
[421509523,1777786238000,-500.0,0.00014359,2]
[421509525,1777786238000,-500.0,0.00014359,2]
[421509533,1777786238000,-1213.98,0.00014732,2]
[421509527,1777786238000,-442.0,0.0001436,2]
[421509522,1777786238000,-500.0,0.00014359,2]
[421509524,1777786238000,-500.0,0.00014359,2]
[421509526,1777786238000,-500.0,0.00014359,2]
[421509515,1777786238000,-500.0,0.00014359,2]
[421509528,1777786238000,-500.0,0.00014487,2]
[421509532,1777786238000,-8831.21,0.00014692,2]
[421509530,1777786238000,-500.0,0.00014691,2]
[421509531,1777786238000,-500.0,0.00014691,2]
[421509536,1777786238000,-323.41622955,0.00014732,2]
[421509537,1777786238000,-203.9855097,0.00014733,2]
[421509535,1777786238000,-570.22,0.00014732,2]
[421509538,1777786238000,-1606.1173704,0.00014733,2]
[421509498,1777786238000,-500.0,0.00014359,2]
[421509529,1777786238000,-500.0,0.0001459,2]
[421509513,1777786238000,-178.6089074,0.00014359,2]
[421509534,1777786238000,-500.0,0.00014732,2]
[421509514,1777786238000,-500.0,0.00014359,2]
[421509499,1777786238000,-500.0,0.00014359,2]
[421509519,1777786238000,-500.0,0.00014359,2]
[421509509,1777786238000,-500.0,0.00014359,2]
[421509500,1777786238000,-500.0,0.00014359,2]
[421509496,1777786238000,-500.0,0.00014359,2]
[421509504,1777786238000,-500.0,0.00014359,2]
[421509507,1777786238000,-500.0,0.00014359,2]
[421509508,1777786238000,-500.0,0.00014359,2]
[421509506,1777786238000,-500.0,0.00014359,2]
[421509497,1777786238000,-500.0,0.00014359,2]
[421509505,1777786238000,-500.0,0.00014359,2]
[421509503,1777786238000,-500.0,0.00014359,2]
[421509512,1777786238000,-500.0,0.00014359,2]
[421509510,1777786238000,-500.0,0.00014359,2]
[421509511,1777786238000,-500.0,0.00014359,2]
[421509518,1777786238000,-500.0,0.00014359,2]
[421509517,1777786238000,-500.0,0.00014359,2]
[421509521,1777786238000,-500.0,0.00014359,2]
[421509501,1777786238000,-500.0,0.00014359,2]
[421509575,1777786239000,-151.0,0.000163,2]
[421509573,1777786239000,-2312.83697232,0.00016257,2]
[421509576,1777786239000,-635.304,0.000163,2]
[421509574,1777786239000,-500.0,0.00016299,2]
[421509578,1777786239000,-151.0,0.000164,2]
[421509569,1777786239000,-151.0,0.000161,2]
[421509583,1777786239000,-200.0,0.00016437,2]
[421509570,1777786239000,-150.0799,0.00016137,2]
[421509567,1777786239000,-500.0,0.00016099,2]
[421509571,1777786239000,-151.0,0.000162,2]
[421509577,1777786239000,-199.57468249,0.00016338,2]
[421509584,1777786239000,-1213.98,0.00016438,2]
[421509582,1777786239000,-201.87810706,0.00016437,2]
[421509593,1777786239000,-1213.98,0.00016438,2]
[421509581,1777786239000,-155.0,0.00016437,2]
[421509585,1777786239000,-1213.98,0.00016438,2]
[421509595,1777786239000,-1213.98,0.00016438,2]
[421509596,1777786239000,-1213.98,0.00016438,2]
[421509597,1777786239000,-1213.98,0.00016438,2]
[421509590,1777786239000,-1213.98,0.00016438,2]
[421509587,1777786239000,-1213.98,0.00016438,2]
[421509589,1777786239000,-1213.98,0.00016438,2]
[421509560,1777786239000,-199.57468249,0.00015819,2]
[421509592,1777786239000,-1213.98,0.00016438,2]
[421509588,1777786239000,-1213.98,0.00016438,2]
[421509586,1777786239000,-1213.98,0.00016438,2]
[421509579,1777786239000,-151.0,0.000164,2]
[421509568,1777786239000,-38308.91797782,0.000161,2]
[421509557,1777786239000,-537.6845,0.00015709,2]
[421509564,1777786239000,-1213.98,0.00016099,2]
[421509546,1777786239000,-500.0,0.00015194,2]
[421509542,1777786239000,-199.57468249,0.0001478,2]
[421509539,1777786239000,-3516.7178244,0.00014733,2]
[421509540,1777786239000,-85214.2189407,0.00014733,2]
[421509543,1777786239000,-325.3693231,0.00014927,2]
[421509544,1777786239000,-381.68489135,0.00015022,2]
[421509541,1777786239000,-500.0,0.00014779,2]
[421509545,1777786239000,-500.0,0.00015193,2]
[421509547,1777786239000,-1213.98,0.00015194,2]
[421509550,1777786239000,-1213.98,0.00015194,2]
[421509549,1777786239000,-1213.98,0.00015194,2]
[421509548,1777786239000,-1213.98,0.00015194,2]
[421509562,1777786239000,-151.0,0.00016,2]
[421509555,1777786239000,-303.15600033,0.0001552,2]
[421509556,1777786239000,-151.0,0.000156,2]
[421509552,1777786239000,-720.0,0.00015516,2]
[421509551,1777786239000,-199.57468249,0.00015299,2]
[421509558,1777786239000,-2150.738,0.00015709,2]
[421509594,1777786239000,-1213.98,0.00016438,2]
[421509553,1777786239000,-160.0,0.0001552,2]
[421509554,1777786239000,-160.0,0.0001552,2]
[421509561,1777786239000,-1213.98,0.00015951,2]
[421509572,1777786239000,-557.5788265,0.00016257,2]
[421509565,1777786239000,-1213.98,0.00016099,2]
[421509563,1777786239000,-5000.0,0.0001606,2]
[421509566,1777786239000,-500.0,0.00016099,2]
[421509559,1777786239000,-151.0,0.000158,2]
[421509591,1777786239000,-1213.98,0.00016438,2]
[421509580,1777786239000,-156.721,0.00016437,2]
[421509600,1777786239000,-1214.1708668,0.00016438,2]
[421509633,1777786239000,-153.200803,0.00016438,2]
[421509632,1777786239000,-284.842819,0.00016438,2]
[421509634,1777786239000,-151.0,0.00016438,2]
[421509638,1777786239000,-173.973636,0.00016438,2]
[421509639,1777786239000,-173.973636,0.00016438,2]
[421509640,1777786239000,-173.973636,0.00016438,2]
[421509637,1777786239000,-173.973636,0.00016438,2]
[421509641,1777786239000,-173.973636,0.00016438,2]
[421509642,1777786239000,-173.973636,0.00016438,2]
[421509643,1777786239000,-173.973636,0.00016438,2]
[421509645,1777786239000,-173.973636,0.00016438,2]
[421509655,1777786239000,-173.973636,0.00016438,2]
[421509656,1777786239000,-173.973638,0.00016438,2]
[421509648,1777786239000,-173.973636,0.00016438,2]
[421509644,1777786239000,-173.973636,0.00016438,2]
[421509647,1777786239000,-173.973636,0.00016438,2]
[421509653,1777786239000,-173.973636,0.00016438,2]
[421509650,1777786239000,-173.973636,0.00016438,2]
[421509652,1777786239000,-173.973636,0.00016438,2]
[421509651,1777786239000,-173.973636,0.00016438,2]
[421509649,1777786239000,-173.973636,0.00016438,2]
[421509654,1777786239000,-173.973636,0.00016438,2]
[421509659,1777786239000,-418.134424,0.00016438,2]
[421509660,1777786239000,-418.134424,0.00016438,2]
[421509658,1777786239000,-418.134424,0.00016438,2]
[421509598,1777786239000,-1213.98,0.00016438,2]
[421509657,1777786239000,-418.134424,0.00016438,2]
[421509627,1777786239000,-151.0,0.00016438,2]
[421509630,1777786239000,-151.0,0.00016438,2]
[421509646,1777786239000,-173.973636,0.00016438,2]
[421509628,1777786239000,-151.0,0.00016438,2]
[421509609,1777786239000,-500.0,0.00016438,2]
[421509611,1777786239000,-500.0,0.00016438,2]
[421509626,1777786239000,-151.0,0.00016438,2]
[421509604,1777786239000,-500.0,0.00016438,2]
[421509602,1777786239000,-500.0,0.00016438,2]
[421509607,1777786239000,-500.0,0.00016438,2]
[421509603,1777786239000,-500.0,0.00016438,2]
[421509605,1777786239000,-500.0,0.00016438,2]
[421509606,1777786239000,-500.0,0.00016438,2]
[421509610,1777786239000,-500.0,0.00016438,2]
[421509612,1777786239000,-500.0,0.00016438,2]
[421509623,1777786239000,-157.648018,0.00016438,2]
[421509614,1777786239000,-176.93734791,0.00016438,2]
[421509621,1777786239000,-151.0,0.00016438,2]
[421509608,1777786239000,-500.0,0.00016438,2]
[421509613,1777786239000,-500.0,0.00016438,2]
[421509615,1777786239000,-1559.0,0.00016438,2]
[421509618,1777786239000,-151.0,0.00016438,2]
[421509617,1777786239000,-151.0,0.00016438,2]
[421509622,1777786239000,-151.0,0.00016438,2]
[421509616,1777786239000,-151.0,0.00016438,2]
[421509620,1777786239000,-151.0,0.00016438,2]
[421509635,1777786239000,-151.0,0.00016438,2]
[421509619,1777786239000,-151.0,0.00016438,2]
[421509624,1777786239000,-151.0,0.00016438,2]
[421509636,1777786239000,-163.907543,0.00016438,2]
[421509625,1777786239000,-240.9012,0.00016438,2]
[421509708,1777786240000,-588.195923,0.00016438,2]
[421509700,1777786240000,-588.195923,0.00016438,2]
[421509702,1777786240000,-233.774504,0.00016438,2]
[421509711,1777786240000,-588.195923,0.00016438,2]
[421509706,1777786240000,-588.195923,0.00016438,2]
[421509695,1777786240000,-233.774508,0.00016438,2]
[421509712,1777786240000,-588.195923,0.00016438,2]
[421509714,1777786240000,-588.195923,0.00016438,2]
[421509696,1777786240000,-588.195923,0.00016438,2]
[421509689,1777786240000,-233.774508,0.00016438,2]
[421509690,1777786240000,-233.774508,0.00016438,2]
[421509703,1777786240000,-588.195923,0.00016438,2]
[421509699,1777786240000,-233.774508,0.00016438,2]
[421509705,1777786240000,-588.195923,0.00016438,2]
[421509729,1777786240000,-10000.0,0.00016438,2]
[421509715,1777786240000,-588.195923,0.00016438,2]
[421509718,1777786240000,-588.195923,0.00016438,2]
[421509697,1777786240000,-233.774508,0.00016438,2]
[421509732,1777786240000,-10000.0,0.00016438,2]
[421509730,1777786240000,-10000.0,0.00016438,2]
[421509724,1777786240000,-10000.0,0.00016438,2]
[421509722,1777786240000,-588.19592,0.00016438,2]
[421509713,1777786240000,-588.195923,0.00016438,2]
[421509733,1777786240000,-10000.0,0.00016438,2]
[421509720,1777786240000,-588.195923,0.00016438,2]
[421509734,1777786240000,-10000.0,0.00016438,2]
[421509725,1777786240000,-10000.0,0.00016438,2]
[421509731,1777786240000,-10000.0,0.00016438,2]
[421509704,1777786240000,-588.195923,0.00016438,2]
[421509709,1777786240000,-588.195923,0.00016438,2]
[421509716,1777786240000,-588.195923,0.00016438,2]
[421509698,1777786240000,-588.195923,0.00016438,2]
[421509667,1777786240000,-418.134424,0.00016438,2]
[421509665,1777786240000,-418.134424,0.00016438,2]
[421509735,1777786240000,-10000.0,0.00016438,2]
[421509662,1777786240000,-418.134424,0.00016438,2]
[421509666,1777786240000,-418.134424,0.00016438,2]
[421509663,1777786240000,-418.134424,0.00016438,2]
[421509668,1777786240000,-418.134424,0.00016438,2]
[421509664,1777786240000,-418.134424,0.00016438,2]
[421509669,1777786240000,-418.134424,0.00016438,2]
[421509670,1777786240000,-418.134424,0.00016438,2]
[421509661,1777786240000,-418.134424,0.00016438,2]
[421509679,1777786240000,-233.774508,0.00016438,2]
[421509675,1777786240000,-418.134424,0.00016438,2]
[421509677,1777786240000,-233.774508,0.00016438,2]
[421509678,1777786240000,-233.774508,0.00016438,2]
[421509671,1777786240000,-418.134424,0.00016438,2]
[421509687,1777786240000,-233.774508,0.00016438,2]
[421509683,1777786240000,-233.774508,0.00016438,2]
[421509676,1777786240000,-418.134434,0.00016438,2]
[421509673,1777786240000,-418.134424,0.00016438,2]
[421509684,1777786240000,-233.774508,0.00016438,2]
[421509672,1777786240000,-418.134424,0.00016438,2]
[421509682,1777786240000,-233.774508,0.00016438,2]
[421509680,1777786240000,-233.774508,0.00016438,2]
[421509674,1777786240000,-418.134424,0.00016438,2]
[421509692,1777786240000,-588.195923,0.00016438,2]
[421509686,1777786240000,-233.774508,0.00016438,2]
[421509694,1777786240000,-588.195923,0.00016438,2]
[421509685,1777786240000,-233.774508,0.00016438,2]
[421509691,1777786240000,-233.774508,0.00016438,2]
[421509688,1777786240000,-233.774508,0.00016438,2]
[421509693,1777786240000,-233.774508,0.00016438,2]
[421509681,1777786240000,-233.774508,0.00016438,2]
[421509727,1777786240000,-10000.0,0.00016438,2]
[421509772,1777786240000,-453.834586,0.00016438,2]
[421509752,1777786240000,-1484.62813,0.00016438,2]
[421509768,1777786240000,-1484.62813,0.00016438,2]
[421509780,1777786240000,-453.834586,0.00016438,2]
[421509781,1777786240000,-453.834586,0.00016438,2]
[421509783,1777786240000,-453.834586,0.00016438,2]
[421509788,1777786240000,-453.834586,0.00016438,2]
[421509784,1777786240000,-453.834586,0.00016438,2]
[421509785,1777786240000,-151.0,0.00016438,2]
[421509782,1777786240000,-453.834586,0.00016438,2]
[421509793,1777786240000,-453.834586,0.00016438,2]
[421509787,1777786240000,-151.0,0.00016438,2]
[421509792,1777786240000,-453.834586,0.00016438,2]
[421509791,1777786240000,-246.814635,0.00016438,2]
[421509789,1777786240000,-151.0,0.00016438,2]
[421509790,1777786240000,-453.834586,0.00016438,2]
[421509771,1777786240000,-1484.628121,0.00016438,2]
[421509795,1777786240000,-453.834586,0.00016438,2]
[421509806,1777786240000,-967.607547,0.00016438,2]
[421509807,1777786240000,-967.607547,0.00016438,2]
[421509794,1777786240000,-453.834586,0.00016438,2]
[421509797,1777786240000,-967.607547,0.00016438,2]
[421509799,1777786240000,-967.607547,0.00016438,2]
[421509802,1777786240000,-967.607547,0.00016438,2]
[421509801,1777786240000,-967.607547,0.00016438,2]
[421509796,1777786240000,-453.834594,0.00016438,2]
[421509804,1777786240000,-967.607547,0.00016438,2]
[421509798,1777786240000,-967.607547,0.00016438,2]
[421509800,1777786240000,-967.607547,0.00016438,2]
[421509803,1777786240000,-967.607547,0.00016438,2]
[421509808,1777786240000,-967.607547,0.00016438,2]
[421509749,1777786240000,-10000.0,0.00016438,2]
[421509805,1777786240000,-967.607547,0.00016438,2]
[421509770,1777786240000,-1484.62813,0.00016438,2]
[421509786,1777786240000,-453.834586,0.00016438,2]
[421509773,1777786240000,-453.834586,0.00016438,2]
[421509776,1777786240000,-453.834586,0.00016438,2]
[421509741,1777786240000,-10000.0,0.00016438,2]
[421509737,1777786240000,-10000.0,0.00016438,2]
[421509750,1777786240000,-10000.0,0.00016438,2]
[421509754,1777786240000,-1484.62813,0.00016438,2]
[421509744,1777786240000,-10000.0,0.00016438,2]
[421509753,1777786240000,-1484.62813,0.00016438,2]
[421509751,1777786240000,-151.228304,0.00016438,2]
[421509748,1777786240000,-10000.0,0.00016438,2]
[421509743,1777786240000,-10000.0,0.00016438,2]
[421509739,1777786240000,-10000.0,0.00016438,2]
[421509746,1777786240000,-10000.0,0.00016438,2]
[421509766,1777786240000,-1484.62813,0.00016438,2]
[421509755,1777786240000,-1484.62813,0.00016438,2]
[421509756,1777786240000,-1484.62813,0.00016438,2]
[421509736,1777786240000,-10000.0,0.00016438,2]
[421509757,1777786240000,-1484.62813,0.00016438,2]
[421509767,1777786240000,-1484.62813,0.00016438,2]
[421509777,1777786240000,-453.834586,0.00016438,2]
[421509778,1777786240000,-453.834586,0.00016438,2]
[421509774,1777786240000,-453.834586,0.00016438,2]
[421509758,1777786240000,-1484.62813,0.00016438,2]
[421509779,1777786240000,-453.834586,0.00016438,2]
[421509775,1777786240000,-152.439637,0.00016438,2]
[421509769,1777786240000,-1484.62813,0.00016438,2]
[421509761,1777786240000,-1484.62813,0.00016438,2]
[421509760,1777786240000,-1484.62813,0.00016438,2]
[421509765,1777786240000,-1484.62813,0.00016438,2]
[421509764,1777786240000,-1484.62813,0.00016438,2]
[421509763,1777786240000,-1484.62813,0.00016438,2]
[421509759,1777786240000,-1484.62813,0.00016438,2]
[421509762,1777786240000,-1484.62813,0.00016438,2]
[421509875,1777786241000,-954.808242,0.00016438,2]
[421509876,1777786241000,-954.808242,0.00016438,2]
[421509877,1777786241000,-954.808242,0.00016438,2]
[421509879,1777786241000,-954.808242,0.00016438,2]
[421509880,1777786241000,-954.808242,0.00016438,2]
[421509889,1777786241000,-954.808236,0.00016438,2]
[421509881,1777786241000,-954.808242,0.00016438,2]
[421509878,1777786241000,-954.808242,0.00016438,2]
[421509883,1777786241000,-954.808242,0.00016438,2]
[421509885,1777786241000,-954.808242,0.00016438,2]
[421509887,1777786241000,-954.808242,0.00016438,2]
[421509888,1777786241000,-954.808242,0.00016438,2]
[421509882,1777786241000,-954.808242,0.00016438,2]
[421509884,1777786241000,-954.808242,0.00016438,2]
[421509869,1777786241000,-168.049132,0.00016438,2]
[421509874,1777786241000,-954.808242,0.00016438,2]
[421509871,1777786241000,-954.808242,0.00016438,2]
[421509868,1777786241000,-151.0,0.00016438,2]
[421509870,1777786241000,-954.808242,0.00016438,2]
[421509865,1777786241000,-399.681385,0.00016438,2]
[421509867,1777786241000,-399.681382,0.00016438,2]
[421509866,1777786241000,-399.681385,0.00016438,2]
[421509863,1777786241000,-399.681385,0.00016438,2]
[421509864,1777786241000,-399.681385,0.00016438,2]
[421509861,1777786241000,-399.681385,0.00016438,2]
[421509872,1777786241000,-954.808242,0.00016438,2]
[421509862,1777786241000,-399.681385,0.00016438,2]
[421509857,1777786241000,-399.681385,0.00016438,2]
[421509895,1777786241000,-151.0,0.00016438,2]
[421509873,1777786241000,-954.808242,0.00016438,2]
[421509893,1777786241000,-151.0,0.00016438,2]
[421509907,1777786241000,-151.0,0.00016438,2]
[421509892,1777786241000,-151.0,0.00016438,2]
[421509917,1777786241000,-4911.76417,0.00016438,2]
[421509914,1777786241000,-4911.76417,0.00016438,2]
[421509915,1777786241000,-4911.76417,0.00016438,2]
[421509916,1777786241000,-4911.76417,0.00016438,2]
[421509918,1777786241000,-4911.76417,0.00016438,2]
[421509913,1777786241000,-275.369012,0.00016438,2]
[421509912,1777786241000,-4911.76417,0.00016438,2]
[421509923,1777786241000,-4911.76417,0.00016438,2]
[421509921,1777786241000,-4911.76417,0.00016438,2]
[421509911,1777786241000,-151.0,0.00016438,2]
[421509920,1777786241000,-4911.76417,0.00016438,2]
[421509922,1777786241000,-4911.76417,0.00016438,2]
[421509919,1777786241000,-4911.76417,0.00016438,2]
[421509903,1777786241000,-151.0,0.00016438,2]
[421509896,1777786241000,-151.0,0.00016438,2]